lending/lending_fUSD_20260310
["ID","MTS","AMOUNT","RATE_DAILY","PERIOD"]
[408090005,1773135041579,-611.761243,0.00019626,2]
[408090006,1773135041590,-151.0,0.00019626,2]
[408090007,1773135041605,-611.761243,0.00019626,2]
[408090008,1773135041615,-221.239915,0.00019626,2]
[408090009,1773135041632,-611.761243,0.00019626,2]
[408090010,1773135041641,-611.761243,0.00019626,2]
[408090011,1773135041651,-151.0,0.00019626,2]
[408090012,1773135041661,-182.697089,0.00019626,2]
[408090013,1773135041671,-182.697089,0.00019626,2]
[408090014,1773135041680,-1340.67337,0.00019626,2]
[408090015,1773135041690,-182.697089,0.00019626,2]
[408090016,1773135041700,-1340.67337,0.00019626,2]
[408090017,1773135041713,-730.561123,0.00019626,2]
[408090018,1773135041723,-182.697089,0.00019626,2]
[408090019,1773135041733,-1340.67337,0.00019626,2]
[408090020,1773135041743,-730.561123,0.00019626,2]
[408090021,1773135041754,-1340.67337,0.00019626,2]
[408090022,1773135041764,-796.414492,0.00019626,2]
[408090023,1773135041774,-730.561123,0.00019626,2]
[408090024,1773135041784,-796.414492,0.00019626,2]
[408090025,1773135041793,-730.561123,0.00019626,2]
[408090026,1773135041803,-796.414492,0.00019626,2]
[408090027,1773135041812,-796.414492,0.00019626,2]
[408090028,1773135041822,-155.42895,0.00019626,2]
[408090029,1773135041832,-2086.881229,0.00019626,2]
[408090030,1773135041842,-2086.881229,0.00019626,2]
[408090031,1773135041852,-2086.881229,0.00019626,2]
[408090032,1773135041863,-2086.881229,0.00019626,2]
[408090033,1773135041874,-5037.764406,0.00019626,2]
[408090034,1773135041884,-5037.764406,0.00019626,2]
[408090035,1773135041894,-5037.764406,0.00019626,2]
[408090036,1773135041903,-5037.764406,0.00019626,2]
[408090037,1773135041913,-239.020003,0.00019626,2]
[408090038,1773135041923,-239.020003,0.00019626,2]
[408090039,1773135041932,-239.020003,0.00019626,2]
[408090040,1773135041942,-151.0,0.00019626,2]
[408090041,1773135041951,-239.020003,0.00019626,2]
[408090042,1773135041961,-151.0,0.00019626,2]
[408090043,1773135041971,-151.0,0.00019626,2]
[408090044,1773135041981,-177.9015,0.00019626,2]
[408090045,1773135041990,-177.9015,0.00019626,2]
[408090046,1773135041999,-151.0,0.00019626,2]
[408090047,1773135042009,-177.9015,0.00019626,2]
[408090048,1773135042018,-199.540689,0.00019626,2]
[408090049,1773135042027,-222.950142,0.00019626,2]
[408090050,1773135042037,-177.9015,0.00019626,2]
[408090051,1773135042046,-480.307624,0.00019626,2]
[408090052,1773135042056,-222.950142,0.00019626,2]
[408090053,1773135042065,-480.307624,0.00019626,2]
[408090054,1773135042075,-222.950142,0.00019626,2]
[408090055,1773135042084,-480.307624,0.00019626,2]
[408090056,1773135042093,-222.950142,0.00019626,2]
[408090057,1773135042102,-280.734468,0.00019626,2]
[408090058,1773135042112,-480.307624,0.00019626,2]
[408090059,1773135042121,-280.734468,0.00019626,2]
[408090060,1773135042131,-151.0,0.00019626,2]
[408090061,1773135042140,-280.734468,0.00019626,2]
[408090062,1773135042150,-151.0,0.00019626,2]
[408090063,1773135042159,-280.734468,0.00019626,2]
[408090064,1773135042169,-151.0,0.00019626,2]
[408090065,1773135042178,-341.84545,0.00019626,2]
[408090066,1773135042187,-151.0,0.00019626,2]
[408090067,1773135042196,-341.84545,0.00019626,2]
[408090068,1773135042206,-4124.192072,0.00019626,2]
[408090069,1773135042215,-341.84545,0.00019626,2]
[408090070,1773135042225,-4124.192072,0.00019626,2]
[408090071,1773135042234,-341.84545,0.00019626,2]
[408090072,1773135042244,-4124.192072,0.00019626,2]
[408090073,1773135042253,-4124.192072,0.00019626,2]
[408090074,1773135042262,-151.0,0.00019626,2]
[408090076,1773135042271,-151.0,0.00019626,2]
[408090077,1773135042281,-151.0,0.00019626,2]
[408090078,1773135042299,-381.697716,0.00019626,2]
[408090079,1773135042312,-185.079486,0.00019626,2]
[408090080,1773135042322,-381.697716,0.00019626,2]
[408090081,1773135042333,-381.697716,0.00019626,2]
[408090082,1773135042344,-381.697716,0.00019626,2]
[408090083,1773135042354,-1556.177913,0.00019626,2]
[408090084,1773135042363,-1556.177913,0.00019626,2]
[408090085,1773135042373,-151.0,0.00019626,2]
[408090086,1773135042382,-1556.177913,0.00019626,2]
[408090087,1773135042392,-1556.177913,0.00019626,2]
[408090090,1773135042401,-389.345317,0.00019626,2]
[408090092,1773135042410,-389.345317,0.00019626,2]
[408090093,1773135042419,-151.0,0.00019626,2]
[408090095,1773135042428,-389.345317,0.00019626,2]
[408090097,1773135042437,-389.345317,0.00019626,2]
[408090099,1773135042447,-151.0,0.00019626,2]
[408090100,1773135042455,-151.0,0.00019626,2]
[408090101,1773135042466,-401.37850293,0.00019627,2]
[408090102,1773135042476,-1972.33,0.00019627,2]
[408090103,1773135042485,-200.0,0.00019628,2]
[408090104,1773135042494,-500.0,0.00019629,2]
[408090105,1773135042503,-433.6846762,0.00019629,2]
[408090107,1773135042513,-490.16137194,0.00019629,2]
[408090109,1773135042522,-303.57927334,0.00019629,2]
[408090111,1773135042531,-543.11296036,0.00019629,2]
[408090112,1773135042540,-500.0,0.00019673,2]
[408090113,1773135042550,-500.0,0.00019673,2]
[408090114,1773135042559,-500.0,0.00019673,2]
[408090115,1773135042568,-500.0,0.00019673,2]
[408090116,1773135042577,-151.0,0.00019691,2]
[408090117,1773135042587,-151.0,0.00019691,2]
[408090118,1773135042598,-611.761243,0.00019691,2]
[408090119,1773135042607,-151.0,0.00019691,2]
[408090120,1773135042617,-611.761243,0.00019691,2]
[408090121,1773135042627,-611.761243,0.00019691,2]
[408090122,1773135042636,-611.761243,0.00019691,2]
[408090123,1773135042647,-165.519029,0.00019691,2]
[408090124,1773135042656,-182.697089,0.00019691,2]
[408090125,1773135042665,-182.697089,0.00019691,2]
[408090126,1773135042674,-1340.67337,0.00019691,2]
[408090127,1773135042684,-182.697089,0.00019691,2]
[408090128,1773135042696,-1340.67337,0.00019691,2]
[408090129,1773135042706,-730.561123,0.00019691,2]
[408090130,1773135042715,-182.697089,0.00019691,2]
[408090131,1773135042724,-1340.67337,0.00019691,2]
[408090132,1773135042735,-730.561123,0.00019691,2]
[408090133,1773135042744,-1340.67337,0.00019691,2]
[408090134,1773135042754,-796.414492,0.00019691,2]
[408090135,1773135042764,-730.561123,0.00019691,2]
[408090136,1773135042774,-796.414492,0.00019691,2]
[408090137,1773135042783,-730.561123,0.00019691,2]
[408090138,1773135042792,-796.414492,0.00019691,2]
[408090139,1773135042801,-796.414492,0.00019691,2]
[408090140,1773135042810,-2086.881229,0.00019691,2]
[408090141,1773135042820,-2086.881229,0.00019691,2]
[408090142,1773135042830,-2086.881229,0.00019691,2]
[408090143,1773135042841,-2086.881229,0.00019691,2]
[408090144,1773135042850,-5037.764406,0.00019691,2]
[408090145,1773135042859,-5037.764406,0.00019691,2]
[408090146,1773135042868,-5037.764406,0.00019691,2]
[408090147,1773135042877,-5037.764406,0.00019691,2]
[408090148,1773135042887,-239.020003,0.00019691,2]
[408090149,1773135042896,-239.020003,0.00019691,2]
[408090150,1773135042905,-239.020003,0.00019691,2]
[408090151,1773135042915,-187.739181,0.00019691,2]
[408090152,1773135042924,-239.020003,0.00019691,2]
[408090153,1773135042933,-151.0,0.00019691,2]
[408090154,1773135042942,-151.0,0.00019691,2]
[408090155,1773135042951,-177.9015,0.00019691,2]
[408090156,1773135042960,-177.9015,0.00019691,2]
[408090157,1773135042968,-177.9015,0.00019691,2]
[408090158,1773135042977,-222.950142,0.00019691,2]
[408090159,1773135042986,-177.9015,0.00019691,2]
[408090160,1773135042995,-480.307624,0.00019691,2]
[408090161,1773135043005,-222.950142,0.00019691,2]
[408090162,1773135043014,-480.307624,0.00019691,2]
[408090163,1773135043023,-222.950142,0.00019691,2]
[408090164,1773135043033,-480.307624,0.00019691,2]
[408090165,1773135043041,-222.950142,0.00019691,2]
[408090166,1773135043051,-280.734468,0.00019691,2]
[408090167,1773135043060,-480.307624,0.00019691,2]
[408090168,1773135043069,-280.734468,0.00019691,2]
[408090169,1773135043078,-151.0,0.00019691,2]
[408090170,1773135043088,-280.734468,0.00019691,2]
[408090171,1773135043097,-151.0,0.00019691,2]
[408090172,1773135043107,-280.734468,0.00019691,2]
[408090173,1773135043116,-151.0,0.00019691,2]
[408090174,1773135043127,-341.84545,0.00019691,2]
[408090175,1773135043136,-278.204752,0.00019691,2]
[408090176,1773135043146,-341.84545,0.00019691,2]
[408090177,1773135043155,-4124.192072,0.00019691,2]
[408090178,1773135043165,-341.84545,0.00019691,2]
[408090179,1773135043174,-3532.93081091,0.00019691,2]
[408090180,1773135043982,-665.27,0.00018791,2]
[408090181,1773135043991,-1044.726,0.00019527,2]
[408090182,1773135044000,-327.618865,0.00019623,2]
[408090183,1773135044010,-327.618865,0.00019623,2]
[408090184,1773135044019,-327.618865,0.00019623,2]
[408090185,1773135044028,-327.618865,0.00019626,2]
[408090186,1773135044037,-327.618865,0.00019626,2]
[408090187,1773135044047,-591.26126109,0.00019691,2]
[408090188,1773135044056,-341.84545,0.00019691,2]
[408090189,1773135044065,-4124.192072,0.00019691,2]
[408090190,1773135044075,-4124.192072,0.00019691,2]
[408090191,1773135044084,-151.0,0.00019691,2]
[408090192,1773135044093,-151.0,0.00019691,2]
[408090193,1773135044103,-381.697716,0.00019691,2]
[408090194,1773135044112,-381.697716,0.00019691,2]
[408090195,1773135044122,-381.697716,0.00019691,2]
[408090196,1773135044132,-381.697716,0.00019691,2]
[408090197,1773135044141,-1556.177913,0.00019691,2]
[408090198,1773135044151,-1556.177913,0.00019691,2]
[408090199,1773135044160,-151.0,0.00019691,2]
[408090200,1773135044170,-1556.177913,0.00019691,2]
[408090201,1773135044179,-1556.177913,0.00019691,2]
[408090202,1773135044189,-389.345317,0.00019691,2]
[408090203,1773135044198,-389.345317,0.00019691,2]
[408090204,1773135044208,-151.0,0.00019691,2]
[408090205,1773135044217,-389.345317,0.00019691,2]
[408090206,1773135044227,-389.345317,0.00019691,2]
[408090207,1773135044236,-151.00002,0.00019691,2]
[408090208,1773135044456,-151.0,0.00019691,2]
[408090209,1773135044467,-327.618865,0.00019691,2]
[408090210,1773135044476,-327.618865,0.00019691,2]
[408090211,1773135044486,-334.97,0.00019692,2]
[408090212,1773135044495,-906.0,0.000197,2]
[408090213,1773135044504,-304.0,0.000197,2]
[408090214,1773135044514,-501.54,0.00019711,2]
[408090215,1773135044524,-487.0,0.00019719,2]
[408090216,1773135044533,-946.7,0.00019719,2]
[408090217,1773135044542,-160.643219,0.00019726,2]
[408090218,1773135044551,-787.0,0.00019726,2]
[408090219,1773135044561,-192.555187,0.00019736,2]
[408090220,1773135044570,-574.893454,0.00019736,2]
[408090221,1773135044579,-574.893454,0.00019736,2]
[408090222,1773135044588,-574.893454,0.00019736,2]
[408090223,1773135044597,-151.0,0.00019736,2]
[408090224,1773135044605,-574.893454,0.00019736,2]
[408090225,1773135044615,-151.0,0.00019736,2]
[408090226,1773135044624,-151.0,0.00019736,2]
[408090227,1773135044633,-151.0,0.00019736,2]
[408090228,1773135044643,-151.0,0.00019736,2]
[408090229,1773135044651,-151.0,0.00019736,2]
[408090230,1773135044660,-151.0,0.00019736,2]
[408090231,1773135044669,-151.0,0.00019736,2]
[408090232,1773135044678,-969.980716,0.00019736,2]
[408090233,1773135044688,-337.411131,0.00019736,2]
[408090234,1773135044701,-969.980716,0.00019736,2]
[408090235,1773135044710,-1489.237899,0.00019736,2]
[408090236,1773135044719,-337.411131,0.00019736,2]
[408090237,1773135044728,-969.980716,0.00019736,2]
[408090238,1773135044739,-1489.237899,0.00019736,2]
[408090239,1773135044748,-337.411131,0.00019736,2]
[408090240,1773135044758,-969.980716,0.00019736,2]
[408090241,1773135044767,-1489.237899,0.00019736,2]
[408090242,1773135044778,-337.411131,0.00019736,2]
[408090243,1773135044787,-151.0,0.00019736,2]
[408090244,1773135044796,-1489.237899,0.00019736,2]
[408090246,1773135044805,-151.0,0.00019736,2]
[408090247,1773135044814,-244.518987,0.00019736,2]
[408090248,1773135044823,-151.0,0.00019736,2]
[408090249,1773135044832,-674.63742,0.00019736,2]
[408090250,1773135044842,-674.63742,0.00019736,2]
[408090251,1773135044850,-674.63742,0.00019736,2]
[408090252,1773135044859,-674.63742,0.00019736,2]
[408090253,1773135044868,-151.0,0.00019739,2]
[408090254,1773135044877,-151.0,0.00019739,2]
[408090255,1773135044886,-151.0,0.00019739,2]
[408090256,1773135044895,-163.106316,0.00019739,2]
[408090257,1773135044904,-151.0,0.00019739,2]
[408090258,1773135044913,-151.0,0.00019739,2]
[408090259,1773135044922,-151.0,0.00019739,2]
[408090260,1773135044931,-199.207104,0.00019739,2]
[408090261,1773135044940,-151.0,0.00019739,2]
[408090262,1773135044949,-151.0,0.00019739,2]
[408090263,1773135044958,-151.0,0.00019739,2]
[408090264,1773135044968,-151.0,0.00019739,2]
[408090265,1773135044978,-171.745036,0.00019739,2]
[408090266,1773135044987,-151.0,0.00019739,2]
[408090267,1773135044997,-151.0,0.00019739,2]
[408090268,1773135045006,-151.0,0.00019739,2]
[408090269,1773135045015,-151.0,0.00019739,2]
[408090270,1773135045025,-151.0,0.00019739,2]
[408090271,1773135045034,-151.0,0.00019739,2]
[408090272,1773135045044,-151.0,0.00019739,2]
[408090273,1773135045052,-151.0,0.00019739,2]
[408090274,1773135045061,-151.0,0.00019739,2]
[408090275,1773135045070,-159.114405,0.00019739,2]
[408090276,1773135045079,-151.0,0.00019739,2]
[408090277,1773135045089,-928.089357,0.00019739,2]
[408090278,1773135045098,-928.089357,0.00019739,2]
[408090279,1773135045107,-928.089357,0.00019739,2]
[408090280,1773135045116,-184.906114,0.00019739,2]
[408090281,1773135045126,-928.089357,0.00019739,2]
[408090282,1773135045135,-184.906114,0.00019739,2]
[408090283,1773135045145,-184.906114,0.00019739,2]
[408090284,1773135045154,-184.906114,0.00019739,2]
[408090285,1773135045163,-151.0,0.00019739,2]
[408090286,1773135045172,-151.0,0.00019739,2]
[408090287,1773135045181,-151.0,0.00019739,2]
[408090288,1773135045190,-151.0,0.00019739,2]
[408090289,1773135045199,-151.0,0.00019739,2]
[408090290,1773135045208,-151.0,0.00019739,2]
[408090291,1773135045217,-163.717381,0.00019739,2]
[408090292,1773135045226,-185.80436,0.00019739,2]
[408090293,1773135045235,-185.80436,0.00019739,2]
[408090294,1773135045244,-185.80436,0.00019739,2]
[408090295,1773135045253,-185.80436,0.00019739,2]
[408090297,1773135045263,-151.0,0.00019739,2]
[408090298,1773135045271,-151.0,0.00019739,2]
[408090299,1773135045280,-152.491587,0.00019739,2]
[408090300,1773135045290,-151.0,0.00019739,2]
[408090301,1773135045299,-202.838684,0.00019739,2]
[408090302,1773135045309,-202.838684,0.00019739,2]
[408090303,1773135045318,-202.838684,0.00019739,2]
[408090304,1773135045335,-202.838684,0.00019739,2]
[408090305,1773135045348,-303.846835,0.00019739,2]
[408090306,1773135045357,-303.846835,0.00019739,2]
[408090307,1773135045367,-303.846835,0.00019739,2]
[408090308,1773135045376,-303.846835,0.00019739,2]
[408090309,1773135045386,-151.0,0.00019739,2]
[408090310,1773135045395,-240.27923613,0.00019742,2]
[408090311,1773135045405,-1101.84532184,0.00019759,5]
[408090312,1773135045414,-155.0,0.00019759,2]
[408090313,1773135045424,-419.98235296,0.00019762,2]
[408090314,1773135045433,-168.0,0.00019772,2]
[408090315,1773135045442,-153.59002681,0.00019772,2]
[408090316,1773135045452,-166.66,0.00019774,2]
[408090317,1773135045461,-500.0,0.00019781,7]
[408090318,1773135045471,-200.24994565,0.00019781,2]
[408090319,1773135045480,-228.85708074,0.00019781,2]
[408090320,1773135045490,-357.23159947,0.00019781,2]
[408090321,1773135045499,-367.12937015,0.00019781,2]
[408090322,1773135045508,-1556.177913,0.00019781,2]
[408090323,1773135045518,-1556.177913,0.00019781,2]
[408090324,1773135045527,-1556.177913,0.00019781,2]
[408090325,1773135045537,-1556.177913,0.00019781,2]
[408090326,1773135045546,-389.345317,0.00019781,2]
[408090327,1773135045555,-389.345317,0.00019781,2]
[408090328,1773135045564,-151.0,0.00019781,2]
[408090329,1773135045574,-389.345317,0.00019781,2]
[408090330,1773135045583,-389.345317,0.00019781,2]
[408090331,1773135045592,-168.0,0.00019798,2]
[408090332,1773135045601,-167.9598,0.000198,2]
[408090333,1773135045610,-445.45883955,0.000198,2]
[408090334,1773135045620,-1101.84532184,0.00019807,5]
[408090335,1773135045630,-151.0,0.00019813,2]
[408090336,1773135045639,-151.0,0.00019813,2]
[408090337,1773135045649,-611.761243,0.00019813,2]
[408090338,1773135045658,-151.0,0.00019813,2]
[408090339,1773135045667,-611.761243,0.00019813,2]
[408090340,1773135045676,-611.761243,0.00019813,2]
[408090342,1773135045686,-611.761243,0.00019813,2]
[408090343,1773135045696,-182.697089,0.00019813,2]
[408090344,1773135045709,-182.697089,0.00019813,2]
[408090345,1773135045719,-1340.67337,0.00019813,2]
[408090346,1773135045728,-182.697089,0.00019813,2]
[408090347,1773135045738,-1340.67337,0.00019813,2]
[408090348,1773135045749,-730.561123,0.00019813,2]
[408090349,1773135045760,-182.697089,0.00019813,2]
[408090350,1773135045770,-1340.67337,0.00019813,2]
[408090351,1773135045780,-730.561123,0.00019813,2]
[408090352,1773135045789,-1340.67337,0.00019813,2]
[408090353,1773135045798,-796.414492,0.00019813,2]
[408090354,1773135045807,-730.561123,0.00019813,2]
[408090355,1773135045817,-796.414492,0.00019813,2]
[408090356,1773135045826,-730.561123,0.00019813,2]
[408090357,1773135045836,-796.414492,0.00019813,2]
[408090358,1773135045846,-796.414492,0.00019813,2]
[408090359,1773135045855,-2086.881229,0.00019813,2]
[408090360,1773135045864,-2086.881229,0.00019813,2]
[408090361,1773135045876,-2086.881229,0.00019813,2]
[408090362,1773135045887,-2086.881229,0.00019813,2]
[408090363,1773135045896,-5037.764406,0.00019813,2]
[408090364,1773135045906,-5037.764406,0.00019813,2]
[408090365,1773135045915,-5037.764406,0.00019813,2]
[408090366,1773135045924,-5037.764406,0.00019813,2]
[408090367,1773135045933,-239.020003,0.00019813,2]
[408090368,1773135045943,-239.020003,0.00019813,2]
[408090369,1773135045952,-239.020003,0.00019813,2]
[408090370,1773135045961,-239.020003,0.00019813,2]
[408090371,1773135045971,-151.0,0.00019813,2]
[408090372,1773135045980,-151.0,0.00019813,2]
[408090373,1773135045989,-177.9015,0.00019813,2]
[408090374,1773135045999,-177.9015,0.00019813,2]
[408090375,1773135046009,-177.9015,0.00019813,2]
[408090376,1773135046018,-222.950142,0.00019813,2]
[408090377,1773135046028,-177.9015,0.00019813,2]
[408090378,1773135046038,-480.307624,0.00019813,2]
[408090379,1773135046048,-222.950142,0.00019813,2]
[408090380,1773135046058,-480.307624,0.00019813,2]
[408090381,1773135046068,-222.950142,0.00019813,2]
[408090382,1773135046078,-480.307624,0.00019813,2]
[408090383,1773135046087,-222.950142,0.00019813,2]
[408090384,1773135046097,-280.734468,0.00019813,2]
[408090385,1773135046106,-480.307624,0.00019813,2]
[408090386,1773135046116,-280.734468,0.00019813,2]
[408090387,1773135046127,-151.0,0.00019813,2]
[408090388,1773135046136,-280.734468,0.00019813,2]
[408090389,1773135046146,-151.0,0.00019813,2]
[408090390,1773135046156,-280.734468,0.00019813,2]
[408090391,1773135046166,-151.0,0.00019813,2]
[408090392,1773135046176,-341.84545,0.00019813,2]
[408090393,1773135046186,-341.84545,0.00019813,2]
[408090394,1773135046195,-4124.192072,0.00019813,2]
[408090395,1773135046205,-341.84545,0.00019813,2]
[408090396,1773135046214,-4124.192072,0.00019813,2]
[408090397,1773135046223,-341.84545,0.00019813,2]
[408090398,1773135046233,-4124.192072,0.00019813,2]
[408090399,1773135046242,-4124.192072,0.00019813,2]
[408090400,1773135046252,-151.0,0.00019813,2]
[408090401,1773135046262,-175.628092,0.00019813,2]
[408090402,1773135046272,-381.697716,0.00019813,2]
[408090403,1773135046283,-381.697716,0.00019813,2]
[408090404,1773135046294,-381.697716,0.00019813,2]
[408090405,1773135046304,-381.697716,0.00019813,2]
[408090406,1773135046316,-151.0,0.00019813,2]
[408090407,1773135046325,-327.618865,0.00019813,2]
[408090408,1773135046335,-200.0,0.00019824,2]
[408090409,1773135046346,-574.893454,0.00019827,2]
[408090410,1773135046356,-574.893454,0.00019827,2]
[408090411,1773135046366,-574.893454,0.00019827,2]
[408090412,1773135046376,-151.0,0.00019827,2]
[408090413,1773135046386,-574.893454,0.00019827,2]
[408090414,1773135046395,-151.0,0.00019827,2]
[408090415,1773135046405,-151.0,0.00019827,2]
[408090416,1773135046415,-151.0,0.00019827,2]
[408090417,1773135046424,-151.0,0.00019827,2]
[408090418,1773135046435,-151.0,0.00019827,2]
[408090419,1773135046445,-151.0,0.00019827,2]
[408090420,1773135046455,-270.610914,0.00019827,2]
[408090421,1773135046464,-151.0,0.00019827,2]
[408090422,1773135046473,-969.980716,0.00019827,2]
[408090423,1773135046483,-337.411131,0.00019827,2]
[408090424,1773135046494,-969.980716,0.00019827,2]
[408090425,1773135046505,-1489.237899,0.00019827,2]
[408090426,1773135046515,-337.411131,0.00019827,2]
[408090427,1773135046525,-969.980716,0.00019827,2]
[408090428,1773135046534,-1489.237899,0.00019827,2]
[408090429,1773135046544,-969.980716,0.00019827,2]
[408090430,1773135046554,-337.411131,0.00019827,2]
[408090431,1773135046563,-1489.237899,0.00019827,2]
[408090432,1773135046572,-337.411131,0.00019827,2]
[408090433,1773135046581,-151.0,0.00019827,2]
[408090434,1773135046590,-1489.237899,0.00019827,2]
[408090435,1773135046599,-151.0,0.00019827,2]
[408090436,1773135046609,-151.0,0.00019827,2]
[408090437,1773135046618,-674.63742,0.00019827,2]
[408090438,1773135046627,-674.63742,0.00019827,2]
[408090439,1773135046637,-674.63742,0.00019827,2]
[408090440,1773135046646,-674.63742,0.00019827,2]
[408090441,1773135046656,-8446.10360616,0.00019831,8]
[408090442,1773135046665,-198.452314,0.00019831,2]
[408090443,1773135046674,-167.9598,0.00019836,2]
[408090444,1773135046683,-193.0,0.00019839,2]
[408090445,1773135046693,-500.0,0.0001984,2]
[408090446,1773135046705,-162.047308,0.00019857,2]
[408090447,1773135046714,-151.0,0.00019857,2]
[408090448,1773135046724,-159.721504,0.00019857,2]
[408090449,1773135046735,-180.92709,0.00019857,2]
[408090450,1773135046744,-151.0,0.00019857,2]
[408090451,1773135046753,-151.0,0.00019857,2]
[408090452,1773135046762,-151.0,0.00019857,2]
[408090453,1773135046771,-179.01065,0.00019857,2]
[408090454,1773135046782,-151.0,0.00019857,2]
[408090455,1773135046792,-151.0,0.00019857,2]
[408090456,1773135046801,-151.0,0.00019857,2]
[408090457,1773135046811,-151.0,0.00019857,2]
[408090458,1773135046821,-151.0,0.00019857,2]
[408090459,1773135046830,-151.0,0.00019857,2]
[408090460,1773135046840,-151.0,0.00019857,2]
[408090461,1773135046849,-151.0,0.00019857,2]
[408090462,1773135046859,-185.80436,0.00019857,2]
[408090463,1773135046871,-185.80436,0.00019857,2]
[408090464,1773135046880,-185.80436,0.00019857,2]
[408090465,1773135046890,-185.80436,0.00019857,2]
[408090466,1773135046899,-151.0,0.00019857,2]
[408090467,1773135046910,-151.0,0.00019857,2]
[408090468,1773135046920,-151.0,0.00019857,2]
[408090469,1773135046930,-202.838684,0.00019857,2]
[408090470,1773135046939,-202.838684,0.00019857,2]
[408090471,1773135046949,-202.838684,0.00019857,2]
[408090472,1773135046960,-202.838684,0.00019857,2]
[408090473,1773135046970,-303.846835,0.00019857,2]
[408090474,1773135046980,-303.846835,0.00019857,2]
[408090475,1773135046990,-303.846835,0.00019857,2]
[408090476,1773135047000,-303.846835,0.00019857,2]
[408090477,1773135047009,-1972.33,0.00019861,2]
[408090478,1773135047018,-150.0,0.00019862,4]
[408090479,1773135047027,-150.0,0.00019862,4]
[408090480,1773135047036,-150.0,0.00019862,4]
[408090481,1773135047045,-150.0,0.00019862,4]
[408090482,1773135047054,-150.0,0.00019862,4]
[408090483,1773135047064,-150.0,0.00019862,4]
[408090484,1773135047073,-284.31111834,0.00019862,4]
[408090485,1773135047082,-242.43281294,0.00019862,4]
[408090486,1773135047091,-150.0,0.00019862,4]
[408090487,1773135047100,-150.0,0.00019862,4]
[408090488,1773135047110,-150.0,0.00019862,4]
[408090489,1773135047120,-150.0,0.00019862,4]
[408090490,1773135047130,-150.0,0.00019862,4]
[408090491,1773135047140,-201.37859139,0.00019862,2]
[408090492,1773135047150,-500.0,0.00019862,2]
[408090493,1773135047159,-500.0,0.00019862,2]
[408090494,1773135047169,-500.0,0.00019862,2]
[408090495,1773135047178,-500.0,0.00019862,2]
[408090496,1773135047188,-500.0,0.00019862,2]
[408090497,1773135047198,-500.0,0.00019862,2]
[408090498,1773135047429,-500.0,0.00019862,2]
[408090499,1773135047438,-500.0,0.00019862,2]
[408090500,1773135047448,-500.0,0.00019862,2]
[408090501,1773135047457,-500.0,0.00019862,2]
[408090502,1773135047466,-500.0,0.00019862,2]
[408090503,1773135047475,-500.0,0.00019862,2]
[408090504,1773135047486,-500.0,0.00019862,2]
[408090505,1773135047495,-500.0,0.00019862,2]
[408090506,1773135047505,-500.0,0.00019862,2]
[408090507,1773135047514,-500.0,0.00019862,2]
[408090508,1773135047524,-513.50885744,0.00019862,2]
[408090509,1773135047533,-500.0,0.00019862,2]
[408090510,1773135047542,-511.29246418,0.00019862,2]
[408090511,1773135047552,-500.0,0.00019862,2]
[408090512,1773135047561,-513.58200217,0.00019862,2]
[408090513,1773135047570,-500.0,0.00019862,2]
[408090514,1773135047580,-500.0,0.00019862,2]
[408090515,1773135047589,-500.0,0.00019862,2]
[408090516,1773135047598,-500.0,0.00019862,2]
[408090517,1773135047607,-500.0,0.00019862,2]